[Event "Titled Tuesday Blitz November 14 Early 2023"]
[White "Winkels, Marcel"]
[Black "disciplinedbrat"]
[WhiteFideId "1003887"]
[WhiteElo "2053"]
[BlackElo "2258"]
[Result "1-0"]
[Round "4"]
[TimeControl "180+1"]
[Date "2023.11.14"]
[WhiteClock "0:00:38"]
[BlackClock "0:00:05"]
[Board "223"]

1. e4 {[%clk 0:03:00]}  c6 {[%clk 0:02:57]} 2. Nf3 {[%clk 0:03:01]}  d5 {[%clk 0:02:57]} 3. exd5 {[%clk 0:03:00]}  cxd5 {[%clk 0:02:58]} 4. d4 {[%clk 0:03:00]}  Nc6 {[%clk 0:02:58]} 5. c3 {[%clk 0:03:00]}  Bg4 {[%clk 0:02:58]} 6. Bf4 {[%clk 0:02:59]}  e6 {[%clk 0:02:57]} 7. Bd3 {[%clk 0:02:59]}  Bd6 {[%clk 0:02:57]} 8. Bxd6 {[%clk 0:02:53]}  Qxd6 {[%clk 0:02:58]} 9. Nbd2 {[%clk 0:02:53]}  Nf6 {[%clk 0:02:55]} 10. h3 {[%clk 0:02:53]}  Bh5 {[%clk 0:02:55]} 11. Qe2 {[%clk 0:02:45]}  O-O {[%clk 0:02:54]} 12. g4 {[%clk 0:02:39]}  Bg6 {[%clk 0:02:53]} 13. g5 {[%clk 0:02:37]}  Bxd3 {[%clk 0:02:48]} 14. Qxd3 {[%clk 0:02:37]}  Nd7 {[%clk 0:02:39]} 15. O-O-O {[%clk 0:02:31]}  e5 {[%clk 0:02:40]} 16. Nxe5 {[%clk 0:02:23]}  Ndxe5 {[%clk 0:02:39]} 17. dxe5 {[%clk 0:02:23]}  Nxe5 {[%clk 0:02:39]} 18. Qg3 {[%clk 0:02:21]}  Rfe8 {[%clk 0:02:32]} 19. Kb1 {[%clk 0:02:16]}  Qg6+ {[%clk 0:02:28]} 20. Ka1 {[%clk 0:02:14]}  Qc2 {[%clk 0:02:22]} 21. Nb3 {[%clk 0:02:11]}  Nc4 {[%clk 0:02:20]} 22. Rb1 {[%clk 0:02:05]}  Rac8 {[%clk 0:01:39]} 23. Qf3 {[%clk 0:01:58]}  Ne5 {[%clk 0:01:00]} 24. Qxd5 {[%clk 0:01:43]}  Rcd8 {[%clk 0:00:46]} 25. Qxb7 {[%clk 0:01:42]}  a5 {[%clk 0:00:41]} 26. Nd4 {[%clk 0:01:36]}  Qxf2 {[%clk 0:00:37]} 27. h4 {[%clk 0:01:25]}  Rb8 {[%clk 0:00:36]} 28. Qc7 {[%clk 0:01:19]}  a4 {[%clk 0:00:20]} 29. a3 {[%clk 0:01:04]}  Rf8 {[%clk 0:00:18]} 30. Qxe5 {[%clk 0:01:00]}  Rbe8 {[%clk 0:00:16]} 31. Qb5 {[%clk 0:00:56]}  Re4 {[%clk 0:00:12]} 32. h5 {[%clk 0:00:48]}  Rfe8 {[%clk 0:00:08]} 33. h6 {[%clk 0:00:43]}  R4e5 {[%clk 0:00:05]} 34. Qxa4 {[%clk 0:00:40]}  Rxg5 {[%clk 0:00:05]} 35. Qxe8# {[%clk 0:00:38]} 1-0


[Site "https://www.chess.com"]

[Event "Titled Tuesday Blitz November 14 Early 2023"]
[White "IsaqueGoncalvesSanto"]
[Black "Sarkar, Justin"]
[BlackFideId "2010011"]
[WhiteElo "1880"]
[BlackElo "2241"]
[Result "0-1"]
[Round "4"]
[TimeControl "180+1"]
[Date "2023.11.14"]
[WhiteClock "0:00:00"]
[BlackClock "0:02:11"]
[Board "226"]

1. d4 {[%clk 0:00:07]}  Nf6 {[%clk 0:02:56]} 2. c4 {[%clk 0:00:07]}  e6 {[%clk 0:02:55]} 3. Nc3 {[%clk 0:00:08]}  Bb4 {[%clk 0:02:53]} 4. Bd2 {[%clk 0:00:08]}  d5 {[%clk 0:02:50]} 5. e3 {[%clk 0:00:09]}  c5 {[%clk 0:02:45]} 6. cxd5 {[%clk 0:00:08]}  Nxd5 {[%clk 0:02:39]} 7. a3 {[%clk 0:00:09]}  Nxc3 {[%clk 0:02:30]} 8. bxc3 {[%clk 0:00:09]}  Ba5 {[%clk 0:02:30]} 9. Qa4+ {[%clk 0:00:08]}  Bd7 {[%clk 0:02:28]} 10. Bb5 {[%clk 0:00:07]}  O-O {[%clk 0:02:25]} 11. Bxd7 {[%clk 0:00:06]}  Nxd7 {[%clk 0:02:24]} 12. Nf3 {[%clk 0:00:07]}  a6 {[%clk 0:02:20]} 13. O-O {[%clk 0:00:03]}  b5 {[%clk 0:02:17]} 14. Qc2 {[%clk 0:00:03]}  Nb6 {[%clk 0:02:12]} 15. Rad1 {[%clk 0:00:00]}  Nc4 {[%clk 0:02:11]} 0-1


[Site "https://www.chess.com"]

[Event "Titled Tuesday Blitz November 14 Early 2023"]
[White "Daneshvar, Bardiya"]
[Black "Nihal Sarin"]
[WhiteFideId "12576468"]
[BlackFideId "25092340"]
[WhiteElo "2975"]
[BlackElo "3126"]
[Result "1-0"]
[Round "5"]
[TimeControl "180+1"]
[Date "2023.11.14"]
[WhiteClock "0:00:04"]
[BlackClock "0:00:07"]
[Board "2"]

1. Nf3 {[%clk 0:03:00]}  d5 {[%clk 0:02:54]} 2. e3 {[%clk 0:03:00]}  Nf6 {[%clk 0:02:52]} 3. c4 {[%clk 0:03:00]}  c6 {[%clk 0:02:50]} 4. Nc3 {[%clk 0:03:00]}  e6 {[%clk 0:02:47]} 5. b3 {[%clk 0:03:00]}  Bd6 {[%clk 0:02:47]} 6. Bb2 {[%clk 0:03:00]}  O-O {[%clk 0:02:47]} 7. Be2 {[%clk 0:03:00]}  e5 {[%clk 0:02:23]} 8. cxd5 {[%clk 0:02:58]}  cxd5 {[%clk 0:02:23]} 9. Nb5 {[%clk 0:02:56]}  Nc6 {[%clk 0:01:39]} 10. Nxd6 {[%clk 0:02:36]}  Qxd6 {[%clk 0:01:40]} 11. d4 {[%clk 0:02:29]}  e4 {[%clk 0:01:36]} 12. Ne5 {[%clk 0:02:29]}  Be6 {[%clk 0:01:17]} 13. Nxc6 {[%clk 0:02:24]}  Qxc6 {[%clk 0:01:17]} 14. Rc1 {[%clk 0:02:21]}  Qd7 {[%clk 0:01:16]} 15. h3 {[%clk 0:02:21]}  Rfc8 {[%clk 0:01:12]} 16. Qd2 {[%clk 0:01:40]}  Rxc1+ {[%clk 0:01:04]} 17. Bxc1 {[%clk 0:01:41]}  Rc8 {[%clk 0:01:05]} 18. Ba3 {[%clk 0:01:41]}  Qc7 {[%clk 0:00:48]} 19. O-O {[%clk 0:01:11]}  Qc2 {[%clk 0:00:48]} 20. Rd1 {[%clk 0:01:11]}  Nd7 {[%clk 0:00:45]} 21. Bb4 {[%clk 0:01:05]}  Qxd2 {[%clk 0:00:43]} 22. Rxd2 {[%clk 0:01:04]}  f5 {[%clk 0:00:41]} 23. f4 {[%clk 0:00:54]}  exf3 {[%clk 0:00:36]} 24. Bxf3 {[%clk 0:00:54]}  Nf6 {[%clk 0:00:36]} 25. Kf2 {[%clk 0:00:50]}  Bf7 {[%clk 0:00:30]} 26. Be7 {[%clk 0:00:28]}  Ne4+ {[%clk 0:00:17]} 27. Bxe4 {[%clk 0:00:28]}  fxe4 {[%clk 0:00:18]} 28. a4 {[%clk 0:00:26]}  Rc3 {[%clk 0:00:15]} 29. Rb2 {[%clk 0:00:25]}  b6 {[%clk 0:00:10]} 30. Bb4 {[%clk 0:00:24]}  Rc6 {[%clk 0:00:11]} 31. a5 {[%clk 0:00:24]}  Be6 {[%clk 0:00:10]} 32. axb6 {[%clk 0:00:24]}  axb6 {[%clk 0:00:11]} 33. Be7 {[%clk 0:00:20]}  Kf7 {[%clk 0:00:10]} 34. Bd8 {[%clk 0:00:19]}  b5 {[%clk 0:00:10]} 35. Ba5 {[%clk 0:00:17]}  g5 {[%clk 0:00:09]} 36. Bb4 {[%clk 0:00:18]}  Rc1 {[%clk 0:00:09]} 37. Kg3 {[%clk 0:00:15]}  h5 {[%clk 0:00:09]} 38. h4 {[%clk 0:00:14]}  gxh4+ {[%clk 0:00:10]} 39. Kxh4 {[%clk 0:00:15]}  Kg6 {[%clk 0:00:11]} 40. Bd6 {[%clk 0:00:12]}  Rh1+ {[%clk 0:00:11]} 41. Kg3 {[%clk 0:00:13]}  h4+ {[%clk 0:00:10]} 42. Kf2 {[%clk 0:00:08]}  Rd1 {[%clk 0:00:08]} 43. Rc2 {[%clk 0:00:08]}  Rd3 {[%clk 0:00:08]} 44. b4 {[%clk 0:00:09]}  Rb3 {[%clk 0:00:06]} 45. Rc6 {[%clk 0:00:07]}  Rb2+ {[%clk 0:00:06]} 46. Kg1 {[%clk 0:00:07]}  Kh5 {[%clk 0:00:06]} 47. Bf4 {[%clk 0:00:06]}  Bf5 {[%clk 0:00:06]} 48. Rf6 {[%clk 0:00:05]}  Kg4 {[%clk 0:00:06]} 49. Bd6 {[%clk 0:00:06]}  Rb1+ {[%clk 0:00:04]} 50. Kh2 {[%clk 0:00:06]}  Rb2 {[%clk 0:00:05]} 51. Kg1 {[%clk 0:00:06]}  Re2 {[%clk 0:00:05]} 52. Bf4 {[%clk 0:00:03]}  Rc2 {[%clk 0:00:06]} 53. Rf8 {[%clk 0:00:03]}  Bc8 {[%clk 0:00:06]} 54. Rg8+ {[%clk 0:00:03]}  Kf5 {[%clk 0:00:07]} 55. Rg5+ {[%clk 0:00:04]}  Ke6 {[%clk 0:00:08]} 56. Re5+ {[%clk 0:00:04]}  Kf6 {[%clk 0:00:08]} 57. Rxd5 {[%clk 0:00:04]}  h3 {[%clk 0:00:09]} 58. gxh3 {[%clk 0:00:04]}  Bxh3 {[%clk 0:00:09]} 59. Rxb5 {[%clk 0:00:05]}  Rg2+ {[%clk 0:00:10]} 60. Kh1 {[%clk 0:00:05]}  Rb2 {[%clk 0:00:10]} 61. Rh5 {[%clk 0:00:04]}  Bg2+ {[%clk 0:00:10]} 62. Kg1 {[%clk 0:00:04]}  Bf3 {[%clk 0:00:11]} 63. Rc5 {[%clk 0:00:03]}  Rxb4 {[%clk 0:00:11]} 64. Kf2 {[%clk 0:00:03]}  Rb2+ {[%clk 0:00:10]} 65. Kg3 {[%clk 0:00:04]}  Rc2 {[%clk 0:00:07]} 66. Rxc2 {[%clk 0:00:04]} 1-0


[Site "https://www.chess.com"]

[Event "Titled Tuesday Blitz November 14 Early 2023"]
[White "Sychev, Klementy"]
[Black "Erdogmus, Yagiz Kaan"]
[WhiteFideId "4114060"]
[BlackFideId "44599790"]
[WhiteElo "2908"]
[BlackElo "3048"]
[Result "1-0"]
[Round "5"]
[TimeControl "180+1"]
[Date "2023.11.14"]
[WhiteClock "0:00:02"]
[BlackClock "0:00:00"]
[Board "7"]

1. e4 {[%clk 0:03:00]}  c5 {[%clk 0:02:59]} 2. Nf3 {[%clk 0:03:01]}  d6 {[%clk 0:03:00]} 3. d4 {[%clk 0:03:01]}  cxd4 {[%clk 0:03:00]} 4. Nxd4 {[%clk 0:03:02]}  Nf6 {[%clk 0:03:01]} 5. Nc3 {[%clk 0:03:01]}  a6 {[%clk 0:03:01]} 6. Bc4 {[%clk 0:02:57]}  e6 {[%clk 0:02:58]} 7. f4 {[%clk 0:02:58]}  Be7 {[%clk 0:02:57]} 8. e5 {[%clk 0:02:57]}  dxe5 {[%clk 0:02:55]} 9. fxe5 {[%clk 0:02:57]}  Nfd7 {[%clk 0:02:41]} 10. Bxe6 {[%clk 0:02:53]}  Nxe5 {[%clk 0:02:41]} 11. Bxc8 {[%clk 0:02:51]}  Qxc8 {[%clk 0:02:42]} 12. O-O {[%clk 0:02:48]}  O-O {[%clk 0:02:39]} 13. Nf5 {[%clk 0:02:46]}  Bc5+ {[%clk 0:02:38]} 14. Kh1 {[%clk 0:02:45]}  Qe6 {[%clk 0:01:50]} 15. Ne4 {[%clk 0:02:23]}  Nbd7 {[%clk 0:01:47]} 16. Qh5 {[%clk 0:01:22]}  g6 {[%clk 0:01:27]} 17. Nh6+ {[%clk 0:01:00]}  Kg7 {[%clk 0:01:16]} 18. Qh4 {[%clk 0:00:55]}  Be7 {[%clk 0:01:12]} 19. Ng5 {[%clk 0:00:47]}  Bxg5 {[%clk 0:01:07]} 20. Bxg5 {[%clk 0:00:46]}  f6 {[%clk 0:01:07]} 21. Bd2 {[%clk 0:00:37]}  Qc4 {[%clk 0:00:47]} 22. Qg3 {[%clk 0:00:28]}  Kh8 {[%clk 0:00:33]} 23. Bc3 {[%clk 0:00:24]}  Rae8 {[%clk 0:00:30]} 24. Rad1 {[%clk 0:00:21]}  b5 {[%clk 0:00:25]} 25. b3 {[%clk 0:00:16]}  Qe6 {[%clk 0:00:19]} 26. Bb4 {[%clk 0:00:14]}  Rc8 {[%clk 0:00:11]} 27. Bxf8 {[%clk 0:00:09]}  Rxf8 {[%clk 0:00:11]} 28. h3 {[%clk 0:00:08]}  Rc8 {[%clk 0:00:10]} 29. Ng4 {[%clk 0:00:06]}  Rxc2 {[%clk 0:00:07]} 30. Nxe5 {[%clk 0:00:06]}  Nxe5 {[%clk 0:00:07]} 31. Qf4 {[%clk 0:00:04]}  Kg7 {[%clk 0:00:07]} 32. Rf2 {[%clk 0:00:04]}  Rc8 {[%clk 0:00:04]} 33. Rfd2 {[%clk 0:00:04]}  Rc7 {[%clk 0:00:04]} 34. Rd6 {[%clk 0:00:04]}  Qe7 {[%clk 0:00:04]} 35. Rxa6 {[%clk 0:00:04]}  Rc2 {[%clk 0:00:03]} 36. a4 {[%clk 0:00:02]}  bxa4 {[%clk 0:00:03]} 37. bxa4 {[%clk 0:00:02]}  g5 {[%clk 0:00:02]} 38. Qf5 {[%clk 0:00:02]}  Ra2 {[%clk 0:00:03]} 39. Re6 {[%clk 0:00:02]}  Qf7 {[%clk 0:00:03]} 40. Rxe5 {[%clk 0:00:02]}  fxe5 {[%clk 0:00:00]} 41. Rd7 {[%clk 0:00:02]} 1-0


[Site "https://www.chess.com"]

[Event "Titled Tuesday Blitz November 14 Early 2023"]
[White "Hafiz, Arif Abdul"]
[Black "Pranav, V"]
[WhiteFideId "7104227"]
[BlackFideId "25060783"]
[WhiteElo "2840"]
[BlackElo "3097"]
[Result "1/2-1/2"]
[Round "5"]
[TimeControl "180+1"]
[Date "2023.11.14"]
[WhiteClock "0:00:05"]
[BlackClock "0:00:04"]
[Board "11"]

1. e4 {[%clk 0:02:57]}  e5 {[%clk 0:03:00]} 2. Nc3 {[%clk 0:02:56]}  Nc6 {[%clk 0:02:59]} 3. f4 {[%clk 0:02:57]}  d6 {[%clk 0:02:55]} 4. Nf3 {[%clk 0:02:57]}  Bg4 {[%clk 0:02:53]} 5. Bb5 {[%clk 0:02:57]}  Nf6 {[%clk 0:02:53]} 6. fxe5 {[%clk 0:02:56]}  dxe5 {[%clk 0:02:52]} 7. O-O {[%clk 0:02:51]}  Bc5+ {[%clk 0:02:37]} 8. Kh1 {[%clk 0:02:51]}  O-O {[%clk 0:02:37]} 9. Bxc6 {[%clk 0:02:50]}  bxc6 {[%clk 0:02:38]} 10. h3 {[%clk 0:02:50]}  Bh5 {[%clk 0:02:35]} 11. d3 {[%clk 0:02:49]}  Nd7 {[%clk 0:02:33]} 12. Qe1 {[%clk 0:02:46]}  Bd6 {[%clk 0:02:30]} 13. Qg3 {[%clk 0:02:41]}  f5 {[%clk 0:02:20]} 14. exf5 {[%clk 0:02:23]}  e4 {[%clk 0:02:20]} 15. Qg5 {[%clk 0:02:23]}  Bxf3 {[%clk 0:02:07]} 16. gxf3 {[%clk 0:02:21]}  Qxg5 {[%clk 0:02:05]} 17. Bxg5 {[%clk 0:02:19]}  exd3 {[%clk 0:02:05]} 18. f6 {[%clk 0:02:10]}  Nxf6 {[%clk 0:01:40]} 19. Bxf6 {[%clk 0:02:10]}  Rxf6 {[%clk 0:01:41]} 20. Ne4 {[%clk 0:02:05]}  Rh6 {[%clk 0:01:40]} 21. Nxd6 {[%clk 0:02:05]}  cxd6 {[%clk 0:01:40]} 22. Kh2 {[%clk 0:02:02]}  Re8 {[%clk 0:01:27]} 23. Rf2 {[%clk 0:01:57]}  dxc2 {[%clk 0:01:17]} 24. Rxc2 {[%clk 0:01:58]}  c5 {[%clk 0:01:17]} 25. Rd1 {[%clk 0:01:47]}  Re3 {[%clk 0:01:16]} 26. Kg3 {[%clk 0:01:33]}  Kf7 {[%clk 0:01:14]} 27. Rcd2 {[%clk 0:01:01]}  Ke7 {[%clk 0:01:05]} 28. Rd3 {[%clk 0:00:59]}  Rg6+ {[%clk 0:01:02]} 29. Kf2 {[%clk 0:00:58]}  Rxd3 {[%clk 0:01:02]} 30. Rxd3 {[%clk 0:00:59]}  Re6 {[%clk 0:01:02]} 31. Ra3 {[%clk 0:00:59]}  Rh6 {[%clk 0:00:53]} 32. Rxa7+ {[%clk 0:00:59]}  Ke6 {[%clk 0:00:51]} 33. Rxg7 {[%clk 0:00:41]}  Rxh3 {[%clk 0:00:51]} 34. a4 {[%clk 0:00:41]}  Rh2+ {[%clk 0:00:50]} 35. Rg2 {[%clk 0:00:40]}  Rh1 {[%clk 0:00:46]} 36. Ke3 {[%clk 0:00:26]}  Kd5 {[%clk 0:00:45]} 37. Kd3 {[%clk 0:00:24]}  h5 {[%clk 0:00:44]} 38. f4 {[%clk 0:00:18]}  h4 {[%clk 0:00:42]} 39. Rg5+ {[%clk 0:00:17]}  Kc6 {[%clk 0:00:42]} 40. f5 {[%clk 0:00:16]}  h3 {[%clk 0:00:38]} 41. Rh5 {[%clk 0:00:16]}  Kd5 {[%clk 0:00:23]} 42. a5 {[%clk 0:00:16]}  h2 {[%clk 0:00:12]} 43. Kc2 {[%clk 0:00:16]}  Ke5 {[%clk 0:00:12]} 44. a6 {[%clk 0:00:14]}  Ra1 {[%clk 0:00:11]} 45. Rxh2 {[%clk 0:00:12]}  Kxf5 {[%clk 0:00:11]} 46. Re2 {[%clk 0:00:10]}  Rxa6 {[%clk 0:00:10]} 47. Kc3 {[%clk 0:00:10]}  Ra4 {[%clk 0:00:11]} 48. Re8 {[%clk 0:00:09]}  Re4 {[%clk 0:00:09]} 49. Rd8 {[%clk 0:00:09]}  Ke5 {[%clk 0:00:09]} 50. Rh8 {[%clk 0:00:09]}  Kd5 {[%clk 0:00:09]} 51. Rh5+ {[%clk 0:00:09]}  Kc6 {[%clk 0:00:10]} 52. Rh6 {[%clk 0:00:10]}  Kd5 {[%clk 0:00:10]} 53. Rh5+ {[%clk 0:00:10]}  Re5 {[%clk 0:00:11]} 54. Rh6 {[%clk 0:00:11]}  Re3+ {[%clk 0:00:11]} 55. Kd2 {[%clk 0:00:11]}  Rg3 {[%clk 0:00:10]} 56. Rh5+ {[%clk 0:00:10]}  Kc4 {[%clk 0:00:11]} 57. Kc2 {[%clk 0:00:09]}  Rg2+ {[%clk 0:00:07]} 58. Kb1 {[%clk 0:00:06]}  d5 {[%clk 0:00:08]} 59. Rh3 {[%clk 0:00:05]}  d4 {[%clk 0:00:06]} 60. Kc1 {[%clk 0:00:04]}  Kb4 {[%clk 0:00:04]} 61. Rh8 {[%clk 0:00:03]}  Kc4 {[%clk 0:00:03]} 62. Rh4 {[%clk 0:00:02]}  Re2 {[%clk 0:00:03]} 63. Rh3 {[%clk 0:00:02]}  Re3 {[%clk 0:00:03]} 64. Rh2 {[%clk 0:00:02]}  Kb3 {[%clk 0:00:03]} 65. Rh8 {[%clk 0:00:02]}  Re1+ {[%clk 0:00:03]} 66. Kd2 {[%clk 0:00:02]}  Rg1 {[%clk 0:00:03]} 67. Rb8+ {[%clk 0:00:03]}  Kc4 {[%clk 0:00:03]} 68. b3+ {[%clk 0:00:03]}  Kd5 {[%clk 0:00:04]} 69. Rd8+ {[%clk 0:00:04]}  Ke4 {[%clk 0:00:04]} 70. Re8+ {[%clk 0:00:04]}  Kd5 {[%clk 0:00:05]} 71. Rd8+ {[%clk 0:00:05]}  Kc6 {[%clk 0:00:05]} 72. Rc8+ {[%clk 0:00:05]}  Kb6 {[%clk 0:00:06]} 73. Rb8+ {[%clk 0:00:06]}  Kc7 {[%clk 0:00:06]} 74. Rb5 {[%clk 0:00:05]}  Kc6 {[%clk 0:00:05]} 75. Rb8 {[%clk 0:00:05]}  Rg7 {[%clk 0:00:04]} 76. Kd3 {[%clk 0:00:03]}  Rg3+ {[%clk 0:00:03]} 77. Kd2 {[%clk 0:00:03]}  Rg7 {[%clk 0:00:04]} 78. Kd3 {[%clk 0:00:04]}  Rb7 {[%clk 0:00:04]} 79. Rxb7 {[%clk 0:00:03]}  Kxb7 {[%clk 0:00:04]} 80. b4 {[%clk 0:00:04]}  cxb4 {[%clk 0:00:02]} 81. Kxd4 {[%clk 0:00:04]}  Kb6 {[%clk 0:00:02]} 82. Kc4 {[%clk 0:00:05]}  Ka5 {[%clk 0:00:03]} 83. Kb3 {[%clk 0:00:06]}  Kb5 {[%clk 0:00:04]} 84. Kb2 {[%clk 0:00:05]}  Ka4 {[%clk 0:00:04]} 1/2-1/2


[Site "https://www.chess.com"]

[Event "Titled Tuesday Blitz November 14 Early 2023"]
[White "AlmasRakhmatullaev"]
[Black "Korobov, Anton"]
[BlackFideId "14105730"]
[WhiteElo "2880"]
[BlackElo "3008"]
[Result "1-0"]
[Round "5"]
[TimeControl "180+1"]
[Date "2023.11.14"]
[WhiteClock "0:00:30"]
[BlackClock "0:00:26"]
[Board "14"]

1. e4 {[%clk 0:03:00]}  c5 {[%clk 0:02:59]} 2. Nf3 {[%clk 0:02:59]}  d6 {[%clk 0:03:00]} 3. d4 {[%clk 0:02:59]}  cxd4 {[%clk 0:03:00]} 4. Qxd4 {[%clk 0:03:00]}  Nf6 {[%clk 0:03:00]} 5. h3 {[%clk 0:03:00]}  Nc6 {[%clk 0:02:58]} 6. Qe3 {[%clk 0:03:00]}  g6 {[%clk 0:02:58]} 7. Be2 {[%clk 0:03:00]}  Bg7 {[%clk 0:02:58]} 8. O-O {[%clk 0:03:00]}  O-O {[%clk 0:02:58]} 9. Rd1 {[%clk 0:03:01]}  Qb6 {[%clk 0:02:58]} 10. Qxb6 {[%clk 0:02:45]}  axb6 {[%clk 0:02:57]} 11. Nc3 {[%clk 0:02:46]}  Nd7 {[%clk 0:02:55]} 12. Nd5 {[%clk 0:02:36]}  Rb8 {[%clk 0:02:25]} 13. c3 {[%clk 0:02:13]}  e6 {[%clk 0:02:13]} 14. Nb4 {[%clk 0:01:57]}  Nxb4 {[%clk 0:02:03]} 15. cxb4 {[%clk 0:01:56]}  Nf6 {[%clk 0:02:03]} 16. Rxd6 {[%clk 0:01:45]}  Nxe4 {[%clk 0:01:54]} 17. Rxb6 {[%clk 0:01:45]}  Ra8 {[%clk 0:01:49]} 18. Bd3 {[%clk 0:01:27]}  Nf6 {[%clk 0:01:44]} 19. a3 {[%clk 0:01:20]}  Nd5 {[%clk 0:01:42]} 20. Rb5 {[%clk 0:01:19]}  Bd7 {[%clk 0:01:35]} 21. Ra5 {[%clk 0:01:12]}  Rxa5 {[%clk 0:01:12]} 22. bxa5 {[%clk 0:01:13]}  Ra8 {[%clk 0:01:13]} 23. Bd2 {[%clk 0:01:07]}  Bxb2 {[%clk 0:01:10]} 24. Rb1 {[%clk 0:01:07]}  Bxa3 {[%clk 0:01:01]} 25. Rxb7 {[%clk 0:01:06]}  Bc6 {[%clk 0:01:02]} 26. Rb3 {[%clk 0:01:04]}  Bc5 {[%clk 0:00:57]} 27. Ne5 {[%clk 0:01:03]}  Be8 {[%clk 0:00:54]} 28. Be4 {[%clk 0:00:56]}  Rd8 {[%clk 0:00:47]} 29. Rd3 {[%clk 0:00:51]}  Bb5 {[%clk 0:00:44]} 30. Rf3 {[%clk 0:00:43]}  f5 {[%clk 0:00:42]} 31. Bd3 {[%clk 0:00:40]}  Nf6 {[%clk 0:00:30]} 32. Bg5 {[%clk 0:00:36]}  Bxd3 {[%clk 0:00:30]} 33. Bxf6 {[%clk 0:00:33]}  Rf8 {[%clk 0:00:30]} 34. Rxd3 {[%clk 0:00:30]}  Rxf6 {[%clk 0:00:26]} 35. Nd7 {[%clk 0:00:30]} 1-0


[Site "https://www.chess.com"]

[Event "Titled Tuesday Blitz November 14 Early 2023"]
[White "Nazari, Arad"]
[Black "Baskakov, Egor"]
[WhiteFideId "12577324"]
[BlackFideId "24197866"]
[WhiteElo "2766"]
[BlackElo "2917"]
[Result "1-0"]
[Round "5"]
[TimeControl "180+1"]
[Date "2023.11.14"]
[WhiteClock "0:00:17"]
[BlackClock "0:00:16"]
[Board "15"]

1. e4 {[%clk 0:02:57]}  c5 {[%clk 0:03:00]} 2. Nf3 {[%clk 0:02:57]}  Nf6 {[%clk 0:03:00]} 3. e5 {[%clk 0:02:55]}  Nd5 {[%clk 0:03:00]} 4. Nc3 {[%clk 0:02:56]}  e6 {[%clk 0:03:01]} 5. Ne4 {[%clk 0:02:56]}  Nc6 {[%clk 0:03:01]} 6. b3 {[%clk 0:02:44]}  f5 {[%clk 0:03:00]} 7. Nc3 {[%clk 0:02:42]}  Nde7 {[%clk 0:02:58]} 8. Bb2 {[%clk 0:02:38]}  Ng6 {[%clk 0:02:58]} 9. Qe2 {[%clk 0:02:36]}  d5 {[%clk 0:02:18]} 10. exd6 {[%clk 0:02:33]}  Bxd6 {[%clk 0:02:18]} 11. g3 {[%clk 0:02:27]}  O-O {[%clk 0:02:15]} 12. O-O-O {[%clk 0:02:26]}  e5 {[%clk 0:02:13]} 13. h4 {[%clk 0:02:24]}  Nd4 {[%clk 0:02:06]} 14. Nxd4 {[%clk 0:02:04]}  cxd4 {[%clk 0:02:03]} 15. Nb5 {[%clk 0:02:04]}  Bb8 {[%clk 0:02:02]} 16. Qc4+ {[%clk 0:01:58]}  Kh8 {[%clk 0:02:01]} 17. h5 {[%clk 0:01:58]}  Ne7 {[%clk 0:01:59]} 18. h6 {[%clk 0:01:59]}  g6 {[%clk 0:01:58]} 19. Nxd4 {[%clk 0:01:57]}  b5 {[%clk 0:01:35]} 20. Nxb5 {[%clk 0:01:54]}  Bb7 {[%clk 0:01:31]} 21. Rh2 {[%clk 0:01:47]}  Bd5 {[%clk 0:01:17]} 22. Qc5 {[%clk 0:01:42]}  a6 {[%clk 0:01:07]} 23. Nc3 {[%clk 0:01:33]}  Ba7 {[%clk 0:01:01]} 24. Qa3 {[%clk 0:01:28]}  Bf3 {[%clk 0:00:59]} 25. Be2 {[%clk 0:01:24]}  Bb7 {[%clk 0:00:56]} 26. f4 {[%clk 0:01:18]}  Bd4 {[%clk 0:00:55]} 27. Bc4 {[%clk 0:01:07]}  Qc7 {[%clk 0:00:46]} 28. Na4 {[%clk 0:01:05]}  Nc6 {[%clk 0:00:43]} 29. Bxd4 {[%clk 0:00:51]}  Nxd4 {[%clk 0:00:41]} 30. Qc5 {[%clk 0:00:48]}  Qxc5 {[%clk 0:00:38]} 31. Nxc5 {[%clk 0:00:49]}  Bf3 {[%clk 0:00:38]} 32. Re1 {[%clk 0:00:47]}  e4 {[%clk 0:00:38]} 33. Ne6 {[%clk 0:00:47]}  Nxe6 {[%clk 0:00:35]} 34. Bxe6 {[%clk 0:00:48]}  Rad8 {[%clk 0:00:35]} 35. Bc4 {[%clk 0:00:44]}  a5 {[%clk 0:00:34]} 36. a3 {[%clk 0:00:41]}  Rd6 {[%clk 0:00:32]} 37. Re3 {[%clk 0:00:34]}  Rb8 {[%clk 0:00:30]} 38. d3 {[%clk 0:00:30]}  Rc6 {[%clk 0:00:28]} 39. dxe4 {[%clk 0:00:29]}  fxe4 {[%clk 0:00:27]} 40. Rd2 {[%clk 0:00:27]}  g5 {[%clk 0:00:25]} 41. fxg5 {[%clk 0:00:27]}  Rg6 {[%clk 0:00:24]} 42. Rd5 {[%clk 0:00:27]}  Rc8 {[%clk 0:00:23]} 43. Rxa5 {[%clk 0:00:24]}  Rd6 {[%clk 0:00:22]} 44. a4 {[%clk 0:00:24]}  Bh5 {[%clk 0:00:20]} 45. Rd5 {[%clk 0:00:24]}  Rdc6 {[%clk 0:00:20]} 46. Rd4 {[%clk 0:00:23]}  Bg6 {[%clk 0:00:19]} 47. a5 {[%clk 0:00:22]}  Rc5 {[%clk 0:00:18]} 48. Rd5 {[%clk 0:00:23]}  R5c6 {[%clk 0:00:17]} 49. Re5 {[%clk 0:00:20]}  Rc5 {[%clk 0:00:16]} 50. Rxc5 {[%clk 0:00:19]}  Rxc5 {[%clk 0:00:17]} 51. a6 {[%clk 0:00:20]}  Rxg5 {[%clk 0:00:17]} 52. b4 {[%clk 0:00:20]}  Re5 {[%clk 0:00:16]} 53. a7 {[%clk 0:00:18]}  Re8 {[%clk 0:00:17]} 54. Bd5 {[%clk 0:00:19]}  Bf7 {[%clk 0:00:17]} 55. Bxf7 {[%clk 0:00:18]}  Ra8 {[%clk 0:00:17]} 56. Rxe4 {[%clk 0:00:16]}  Rc8 {[%clk 0:00:17]} 57. Re8+ {[%clk 0:00:16]}  Rxe8 {[%clk 0:00:16]} 58. Bxe8 {[%clk 0:00:17]} 1-0


[Site "https://www.chess.com"]